fUST/lending_fUST_20260418
["ID","MTS","AMOUNT","RATE_DAILY","PERIOD"]
[420745129,1776523840905,-821.0,0.00012893,2]
[420745130,1776523840915,-821.0,0.00012893,2]
[420745131,1776523840925,-821.0,0.00012893,2]
[420745132,1776523840934,-821.0,0.00012893,2]
[420745133,1776523840943,-821.0,0.00012893,2]
[420745134,1776523840952,-821.0,0.00012893,2]
[420745135,1776523840962,-821.0,0.00012893,2]
[420745136,1776523840971,-821.0,0.00012893,2]
[420745137,1776523840981,-821.0,0.00012893,2]
[420745138,1776523840990,-821.0,0.00012893,2]
[420745139,1776523841000,-821.0,0.00012893,2]
[420745140,1776523841011,-821.0,0.00012893,2]
[420745141,1776523841020,-821.0,0.00012893,2]
[420745142,1776523841029,-821.0,0.00012893,2]
[420745143,1776523841039,-821.0,0.00012893,2]
[420745144,1776523841048,-821.0,0.00012893,2]
[420745145,1776523841058,-821.0,0.00012893,2]
[420745146,1776523841067,-821.0,0.00012893,2]
[420745147,1776523841077,-821.0,0.00012893,2]
[420745148,1776523841086,-821.0,0.00012893,2]
[420745149,1776523841096,-821.0,0.00012893,2]
[420745150,1776523841105,-821.0,0.00012893,2]
[420745151,1776523841115,-172.0,0.00012893,2]
[420745152,1776523841124,-654.0,0.00012893,2]
[420745153,1776523841133,-151.0,0.000129,2]
[420745154,1776523841143,-151.0,0.000129,2]
[420745155,1776523841152,-2288.54,0.00013,3]
[420745156,1776523841162,-106982.39072001,0.00013,2]
[420745157,1776523841171,-500.0,0.00013,2]
[420745158,1776523841180,-2000.0,0.00013,14]
[420745159,1776523841189,-1822.29,0.00013,14]
[420745160,1776523841199,-2000.0,0.00013,14]
[420745161,1776523841208,-2000.0,0.00013,14]
[420745162,1776523841217,-2000.0,0.00013,14]
[420745163,1776523841227,-151.0,0.00013,2]
[420745164,1776523841236,-150.0,0.0001306,2]
[420745165,1776523841245,-2500.0,0.00013064,2]
[420745166,1776523841254,-2500.0,0.00013064,2]
[420745167,1776523841263,-151.0,0.000131,2]
[420745168,1776523841273,-5091.81651908,0.00013127,2]
[420745169,1776523841282,-422.61893022,0.00013176,2]
[420745170,1776523841292,-151.0,0.000132,2]
[420745171,1776523841301,-399.48865643,0.00013208,2]
[420745172,1776523841312,-230.44356415,0.00013233,14]
[420745173,1776523841322,-151.0,0.000133,2]
[420745174,1776523841331,-150.0,0.0001336,2]
[420745175,1776523841341,-631.94770373,0.00013371,2]
[420745176,1776523841351,-7514.53291864,0.00013389,2]
[420745177,1776523841360,-151.0,0.000134,2]
[420745178,1776523841369,-151.0,0.000134,2]
[420745179,1776523841378,-1000.0,0.00013422,2]
[420745180,1776523841388,-791.0,0.00013422,2]
[420745181,1776523841397,-1316.93359877,0.00013478,5]
[420745182,1776523841407,-399.48865643,0.0001349,2]
[420745183,1776523841416,-348651.50967856,0.0001349,2]
[420745184,1776523841425,-151.0,0.000135,2]
[420745185,1776523841434,-151.0,0.000136,2]
[420745186,1776523841443,-3000.0,0.00013612,2]
[420745187,1776523841452,-3000.0,0.00013612,2]
[420745188,1776523841462,-150.0,0.0001366,2]
[420745190,1776523841472,-196.38416,0.00013688,2]
[420745192,1776523841481,-3960.91100671,0.0001369,7]
[420745194,1776523841491,-3960.91100671,0.0001369,7]
[420745196,1776523841499,-3960.91100671,0.0001369,7]
[420745198,1776523841509,-3960.91100671,0.0001369,7]
[420745199,1776523841519,-7744.46729674,0.0001369,7]
[420745201,1776523841528,-7744.46729674,0.0001369,7]
[420745203,1776523841538,-7744.46729674,0.0001369,7]
[420745205,1776523841547,-7744.46729674,0.0001369,7]
[420745207,1776523841556,-178.17605244,0.0001369,7]
[420745209,1776523841566,-178.17605244,0.0001369,7]
[420745211,1776523841575,-178.17605244,0.0001369,7]
[420745213,1776523841584,-178.17605244,0.0001369,7]
[420745215,1776523841593,-161239.48515654,0.0001369,7]
[420745217,1776523841606,-2035.49424239,0.0001369,7]
[420745220,1776523841617,-4631.46939489,0.0001369,7]
[420745292,1776523846724,-8979.92181673,0.0001369,7]
[420745311,1776523846887,-1351.01194729,0.0001369,7]
[420745320,1776523846941,-11509.81534549,0.0001369,7]
[420745406,1776523847744,-261.0,0.0001369,7]
[420745409,1776523847758,-499.528,0.0001369,7]
[420745410,1776523847797,-3325.63987826,0.0001369,7]
[420750091,1776524389064,152.500001,0.00023427,120]
[420752089,1776524850570,500.0,0.00024657,120]
[420752090,1776524850817,500.0,0.00024657,120]
[420752091,1776524914597,-1000.0,7.449e-05,2]
[420752092,1776524916184,-1000.0,7.449e-05,2]
[420752093,1776524917837,-1000.0,7.449e-05,2]
[420752094,1776524918280,-1000.0,7.449e-05,2]
[420752095,1776524918591,-1000.0,7.449e-05,2]
[420752096,1776524918999,-401.0,7.449e-05,2]
[420752097,1776524919023,-253.62267503,7.525e-05,2]
[420752098,1776524919047,-345.37732497,7.6e-05,2]
[420752099,1776524919473,-1000.0,7.6e-05,2]
[420752100,1776524919779,-1000.0,7.6e-05,2]
[420752101,1776524920231,-1000.0,7.6e-05,2]
[420752102,1776524920695,-1000.0,7.6e-05,2]
[420752103,1776524920997,-1000.0,7.6e-05,2]
[420752104,1776524921320,-1000.0,7.6e-05,2]
[420752105,1776524921754,-1000.0,7.375e-05,2]
[420752106,1776524922195,-1000.0,7.375e-05,2]
[420752107,1776524922526,-1000.0,7.375e-05,2]
[420752108,1776524922897,-1000.0,7.375e-05,2]
[420752109,1776524923350,-1000.0,7.375e-05,2]
[420752110,1776524923802,-1000.0,7.6e-05,2]
[420752111,1776524924134,-1000.0,7.6e-05,2]
[420752112,1776524924445,-1000.0,7.6e-05,2]
[420752113,1776524930316,-1000.0,7.6e-05,2]
[420752114,1776524930738,-1000.0,7.6e-05,2]
[420752115,1776524931218,-1000.0,7.6e-05,2]
[420752116,1776524931668,-1000.0,7.6e-05,2]
[420752117,1776524932118,-1000.0,7.6e-05,2]
[420752118,1776524932472,-1000.0,7.6e-05,2]
[420752119,1776524932817,-1000.0,7.6e-05,2]
[420752120,1776524933150,-1000.0,7.6e-05,2]
[420752121,1776524933501,-1000.0,7.6e-05,2]
[420752122,1776524933936,-1000.0,7.6e-05,2]
[420752123,1776524934415,-355.454563,7.6e-05,2]
[420752124,1776524934440,-644.545437,7.661e-05,2]
[420752125,1776524934781,-1000.0,7.661e-05,2]
[420752126,1776524935387,-32.43165106,7.661e-05,2]
[420752127,1776524935412,-967.56834894,7.82e-05,2]
[420752128,1776524935517,-1000.0,7.82e-05,2]
[420752129,1776524935855,-1000.0,7.82e-05,2]
[420752131,1776524936415,-1000.0,7.82e-05,2]
[420752132,1776524936543,-133.07953069,7.82e-05,2]
[420752133,1776524936569,-866.92046931,7.874e-05,2]
[420752135,1776524951870,500.0,0.00024657,120]
[420752136,1776524952097,500.0,0.00024657,120]
[420752137,1776524952329,500.0,0.00024657,120]
[420752138,1776524952553,500.0,0.00024657,120]
[420752139,1776524952837,500.0,0.00024657,120]
[420752140,1776524953064,500.0,0.00024657,120]
[420752141,1776524953292,500.0,0.00024657,120]
[420752142,1776524953520,500.0,0.00024657,120]
[420752143,1776524953743,500.0,0.00024657,120]
[420752144,1776524953974,500.0,0.00024657,120]
[420752145,1776524954204,500.0,0.00024657,120]
[420752146,1776524954433,500.0,0.00024657,120]
[420752147,1776524954679,500.0,0.00024657,120]
[420752148,1776524954909,500.0,0.00024657,120]
[420752149,1776524955136,500.0,0.00024657,120]
[420752150,1776524955378,500.0,0.00024657,120]
[420752151,1776524955828,500.0,0.00024657,120]
[420752152,1776524955901,500.0,0.00024657,120]
[420752153,1776524956096,434.0936,0.00024657,120]
[420753437,1776525032668,-5000.0,7.795e-05,2]
[420753439,1776525032677,-2064.87825599,7.874e-05,2]
[420753585,1776525041016,-1020.30742874,7.874e-05,2]
[420753586,1776525041026,-160.0,8.453e-05,2]
[420753587,1776525041035,-184.0,8.658e-05,2]
[420753588,1776525041044,-441.0,8.658e-05,2]
[420753589,1776525041053,-362.6592573,9.275e-05,2]
[420753590,1776525041064,-442.11446693,9.275e-05,2]
[420753592,1776525041074,-299.27475654,9.525e-05,2]
[420753593,1776525041084,-4492.81103874,9.79e-05,2]
[420753594,1776525041093,-1350.01285158,0.0001034,2]
[420753595,1776525041103,-239.69319386,0.00010658,2]
[420753596,1776525041112,-180.0,0.00010741,2]
[420753598,1776525041121,-151.0,0.00010741,2]
[420753599,1776525041131,-151.0,0.00010741,2]
[420753600,1776525041142,-151.0,0.00010741,2]
[420753601,1776525041151,-151.0,0.00010741,2]
[420753602,1776525041160,-151.0,0.00010741,2]
[420753603,1776525041170,-151.0,0.00010741,2]
[420753605,1776525041180,-151.0,0.00010741,2]
[420753606,1776525041190,-151.0,0.00010741,2]
[420753607,1776525041199,-151.0,0.00010741,2]
[420753608,1776525041208,-151.0,0.00010741,2]
[420753609,1776525041218,-151.0,0.00010741,2]
[420753611,1776525041227,-151.0,0.00010741,2]
[420753612,1776525041237,-151.0,0.00010741,2]
[420753613,1776525041246,-151.0,0.00010741,2]
[420753614,1776525041256,-151.0,0.00010741,2]
[420753615,1776525041265,-151.0,0.00010741,2]
[420753616,1776525041275,-151.0,0.00010741,2]
[420753618,1776525041284,-151.0,0.00010741,2]
[420753619,1776525041294,-151.0,0.00010741,2]
[420753620,1776525041316,-151.0,0.00010741,2]
[420753621,1776525041326,-440.92779339,0.00010746,2]
[420753623,1776525041336,-500.0,0.00010746,2]
[420753624,1776525041346,-500.0,0.00010746,2]
[420753625,1776525041356,-500.0,0.00010746,2]
[420753626,1776525041366,-500.0,0.00010746,2]
[420753627,1776525041376,-500.0,0.00010746,2]
[420753629,1776525041386,-500.0,0.00010746,2]
[420753630,1776525041395,-500.0,0.00010746,2]
[420753631,1776525041405,-500.0,0.00010746,2]
[420753632,1776525041415,-500.0,0.00010746,2]
[420753633,1776525041426,-500.0,0.00010746,2]
[420753634,1776525041438,-500.0,0.00010746,2]
[420753636,1776525041448,-500.0,0.00010746,2]
[420753637,1776525041458,-500.0,0.00010746,2]
[420753638,1776525041468,-500.0,0.00010746,2]
[420753639,1776525041478,-500.0,0.00010746,2]
[420753640,1776525041487,-500.0,0.00010746,2]
[420753642,1776525041498,-500.0,0.00010746,2]
[420753643,1776525041507,-500.0,0.00010746,2]
[420753644,1776525041517,-500.0,0.00010746,2]
[420753645,1776525041527,-500.0,0.00010746,2]
[420753646,1776525041536,-500.0,0.00010746,2]
[420753647,1776525041546,-500.0,0.00010746,2]
[420753649,1776525041556,-500.0,0.00010746,2]
[420753650,1776525041565,-500.0,0.00010746,2]
[420753651,1776525041575,-500.0,0.00010746,2]
[420753652,1776525041585,-500.0,0.00010746,2]
[420753653,1776525041594,-500.0,0.00010746,2]
[420753655,1776525041604,-315.4899047,0.00010746,2]
[420753656,1776525041614,-500.0,0.00010746,2]
[420753657,1776525041624,-500.0,0.00010746,2]
[420753658,1776525041635,-500.0,0.00010746,2]
[420753659,1776525041646,-500.0,0.00010746,2]
[420753661,1776525041656,-500.0,0.00010746,2]
[420753662,1776525041666,-500.0,0.00010746,2]
[420753663,1776525041676,-500.0,0.00010746,2]
[420753664,1776525041686,-500.0,0.00010746,2]
[420753665,1776525041698,-500.0,0.00010746,2]
[420753666,1776525041707,-500.0,0.00010746,2]
[420753668,1776525041717,-500.0,0.00010746,2]
[420753669,1776525041727,-500.0,0.00010746,2]
[420753670,1776525041737,-500.0,0.00010746,2]
[420753671,1776525041747,-621.70298781,0.00010746,2]
[420753672,1776525041758,-500.0,0.00010746,2]
[420753674,1776525041768,-500.0,0.00010746,2]
[420753675,1776525041778,-500.0,0.00010746,2]
[420753676,1776525041790,-500.0,0.00010746,2]
[420753677,1776525041800,-500.0,0.00010746,2]
[420753678,1776525041812,-500.0,0.00010746,2]
[420753679,1776525041822,-500.0,0.00010746,2]
[420753681,1776525041832,-500.0,0.00010746,2]
[420753682,1776525041843,-500.0,0.00010746,2]
[420753683,1776525041853,-500.0,0.00010746,2]
[420753684,1776525041872,-500.0,0.00010746,2]
[420753686,1776525041894,-500.0,0.00010746,2]
[420753687,1776525041904,-521.04940929,0.00010746,2]
[420753688,1776525041916,-500.0,0.00010746,2]
[420753689,1776525041926,-500.0,0.00010746,2]
[420753690,1776525041936,-500.0,0.00010746,2]
[420753691,1776525041945,-500.0,0.00010746,2]
[420753693,1776525041955,-500.0,0.00010746,2]
[420753694,1776525041964,-500.0,0.00010746,2]
[420753695,1776525041973,-500.0,0.00010746,2]
[420753696,1776525041983,-500.0,0.00010746,2]
[420753697,1776525041993,-4763.16348109,0.00010748,2]
[420753699,1776525042003,-763.09,0.00010758,2]
[420753700,1776525042013,-864.08,0.00010769,2]
[420753701,1776525042023,-1069.22,0.00010794,2]
[420753702,1776525042032,-1348.76,0.00010828,2]
[420753703,1776525042042,-1691.14,0.0001086,2]
[420753704,1776525042051,-255.0,0.00010959,3]
[420753706,1776525042060,-15380.3736,0.00010959,2]
[420753707,1776525042070,-150.0,0.0001096,2]
[420753708,1776525042080,-150.0,0.0001126,2]
[420753709,1776525042090,-239.69319386,0.00011391,2]
[420753710,1776525042099,-344.92683805,0.00011525,2]
[420753712,1776525042109,-150.0,0.0001156,2]
[420753713,1776525042119,-184.0,0.00011658,2]
[420753714,1776525042128,-441.0,0.00011658,2]
[420753715,1776525042138,-5033.51592344,0.00011705,2]
[420753716,1776525042148,-150.0,0.00012003,2]
[420753718,1776525042158,-230.0,0.00012055,3]
[420753719,1776525042167,-239.69319386,0.00012124,2]
[420753720,1776525042177,-150.0,0.00012303,2]
[420753721,1776525042187,-189.014004,0.00012322,2]
[420753722,1776525042196,-150.0,0.00012603,2]
[420753723,1776525042206,-10176.32378948,0.00012699,2]
[420753725,1776525042219,-151.0,0.000127,2]
[420753726,1776525042229,-231.78242608,0.00012729,2]
[420753727,1776525042238,-151.0,0.000128,2]
[420753728,1776525042248,-151.0,0.000128,2]
[420753729,1776525042258,-239.69319386,0.00012857,2]
[420753731,1776525042268,-2508.98327036,0.00012895,2]
[420753732,1776525042277,-2011.33728615,0.00012898,2]
[420753733,1776525042287,-519.05869735,0.00012898,2]
[420753734,1776525042296,-2011.33728615,0.00012898,2]
[420753735,1776525042306,-2011.33728615,0.00012898,2]
[420753737,1776525042316,-2011.33728615,0.00012898,2]
[420753738,1776525042326,-2011.33728615,0.00012898,2]
[420753739,1776525042335,-2011.33728615,0.00012898,2]
[420753740,1776525042345,-2011.33728615,0.00012898,2]
[420753741,1776525042355,-2011.33728615,0.00012898,2]
[420753742,1776525042364,-2011.33728615,0.00012898,2]
[420753744,1776525042374,-2011.33728615,0.00012898,2]
[420753745,1776525042383,-2011.33728615,0.00012898,2]
[420753746,1776525042393,-2011.33728615,0.00012898,2]
[420753747,1776525042403,-2011.33728615,0.00012898,2]
[420753748,1776525042412,-2011.33728615,0.00012898,2]
[420753750,1776525042424,-2011.33728615,0.00012898,2]
[420753751,1776525042433,-2011.33728615,0.00012898,2]
[420753752,1776525042443,-2011.33728615,0.00012898,2]
[420753753,1776525042452,-2011.33728615,0.00012898,2]
[420753754,1776525042462,-2011.33728615,0.00012898,2]
[420753756,1776525042472,-2011.33728615,0.00012898,2]
[420753757,1776525042482,-151.0,0.000129,2]
[420753758,1776525042492,-151.0,0.000129,2]
[420753759,1776525042502,-150.0,0.00012903,2]
[420753760,1776525042511,-231.78242608,0.00012983,7]
[420753761,1776525042521,-151.0,0.00013,2]
[420753763,1776525042531,-151.0,0.00013,2]
[420753764,1776525042541,-151.0,0.000131,2]
[420753765,1776525042550,-151.0,0.000131,2]
[420753766,1776525042560,-232.0,0.00013151,3]
[420753767,1776525042569,-189.014004,0.00013186,2]
[420753769,1776525042579,-151.0,0.000132,2]
[420753770,1776525042588,-151.0,0.000132,2]
[420753771,1776525042598,-151.0,0.000132,2]
[420753772,1776525042608,-150.0,0.00013203,2]
[420753773,1776525042617,-113.38408553,0.00013207,2]
[420753774,1776525042632,-686.61591447,0.00013207,2]
[420753776,1776525042641,-151.0,0.000133,2]
[420753777,1776525042653,-151.0,0.000133,2]
[420753778,1776525042663,-231.78242608,0.00013365,14]
[420753779,1776525042672,-151.0,0.000134,2]
[420753780,1776525042682,-151.0,0.000134,2]
[420753782,1776525042691,-206.99369548,0.0001348,2]
[420753783,1776525042700,-151.0,0.000135,2]
[420753784,1776525042710,-151.0,0.000135,2]
[420753785,1776525042719,-150.0,0.00013503,2]
[420753786,1776525042729,-390.57891955,0.00013525,2]
[420753787,1776525042739,-239.69319386,0.0001359,2]
[420753789,1776525042749,-455.6611417,0.00013592,2]
[420753790,1776525042758,-4631.48782244,0.00013598,2]
[420753791,1776525042769,-9232.82862355,0.00013598,2]
[420753792,1776525042779,-151.0,0.000136,2]
[420753793,1776525042790,-151.0,0.000136,2]
[420753795,1776525042800,-5509.69574555,0.00013621,2]
[420753796,1776525042809,-150.0,0.0001366,2]
[420753797,1776525042818,-41.1756309,0.00013673,2]
[420753856,1776525043467,-458.8243691,0.00013673,2]
[420753857,1776525043476,-500.0,0.00013673,2]
[420753858,1776525043488,-41679.13840185,0.0001369,7]
[420753866,1776525043883,-24123.35591975,0.0001034,2]
[420753922,1776525046906,-10803.36995171,0.0001034,2]
[420753928,1776525047170,-28833.08655563,0.0001034,2]
[420757081,1776525346799,2000.0,0.0002465,120]
[420757173,1776525352847,1000.0,0.0002465,120]
[420757344,1776525366809,1120.2488021,0.0002465,120]
[420757359,1776525737454,500.0,0.00023411,120]
[420761371,1776526052042,500.0,0.00023411,120]
[420763418,1776526231859,-5000.0,7.454e-05,2]
[420763419,1776526231869,-234.78493749,7.529e-05,2]
[420763420,1776526231879,-265.9683468,8.55e-05,2]
[420763421,1776526231889,-320.70670971,8.601e-05,2]
[420763422,1776526231900,-336.14223849,8.601e-05,2]
[420763424,1776526231909,-441.0,9.281e-05,2]
[420763425,1776526231919,-184.0,9.281e-05,2]
[420763426,1776526231928,-277.04622623,9.529e-05,2]
[420763427,1776526231938,-165.806354,0.00010768,2]
[420763428,1776526231947,-50.63761043,0.00010852,2]
[420763511,1776526239285,-100.36238957,0.00010852,2]
[420763512,1776526239295,-151.0,0.00010852,2]
[420763513,1776526239304,-151.0,0.00010852,2]
[420763514,1776526239313,-151.0,0.00010852,2]
[420763515,1776526239323,-151.0,0.00010852,2]
[420763516,1776526239333,-75.63761043,0.00010852,2]
[420763517,1776526239345,-75.36238957,0.00010852,2]
[420763518,1776526239354,-151.0,0.00010852,2]
[420763519,1776526239364,-151.0,0.00010852,2]
[420763521,1776526239373,-151.0,0.00010852,2]
[420763522,1776526239383,-300.89714103,0.00010852,2]
[420763523,1776526239392,-260.0,0.00010958,2]
[420763524,1776526239402,-230.0,0.00010959,3]
[420763525,1776526239412,-150.0,0.0001096,2]
[420763526,1776526239422,-45.84055213,0.00011,2]
[420763549,1776526240247,-105.15944787,0.00011,2]
[420763550,1776526240256,-150.0,0.0001126,2]
[420763551,1776526240267,-151.0,0.000113,2]
[420763552,1776526240276,-151.0,0.000115,2]
[420763553,1776526240286,-319.30751498,0.00011529,2]
[420763554,1776526240296,-150.0,0.0001156,2]
[420763555,1776526240305,-151.0,0.000118,2]
[420763557,1776526240315,-150.0,0.0001186,2]
[420763558,1776526240324,-262.49687911,0.00011945,2]
[420763559,1776526240334,-202.0,0.00012055,3]
[420763560,1776526240345,-151.0,0.000121,2]
[420763561,1776526240354,-150.0,0.0001216,2]
[420763562,1776526240364,-441.0,0.00012281,2]
[420763563,1776526240373,-184.0,0.00012281,2]
[420763564,1776526240384,-151.0,0.000123,2]
[420763566,1776526240393,-150.0,0.0001246,2]
[420763567,1776526240402,-152.0,0.00012461,7]
[420763568,1776526240411,-152.0,0.00012465,30]
[420763569,1776526240422,-151.0,0.000126,2]
[420763570,1776526240431,-150.0,0.0001276,2]
[420763571,1776526240441,-1187.83615804,0.00012872,2]
[420763572,1776526240455,-20035.34896154,0.00012872,2]
[420763609,1776526243219,-1416.22662442,0.0001089,2]
[420763663,1776526246308,-3583.77337558,0.0001089,2]
[420763664,1776526246318,-5591.05937674,0.00012872,2]
[420764815,1776526350847,500.0,0.00023411,120]
[420765408,1776526406583,500.0,0.00024657,120]
[420765564,1776526422292,500.0,0.00024657,120]
[420765617,1776526427350,500.21,0.00024658,120]
[420765655,1776526430872,500.0,0.00024657,120]
[420765700,1776526435655,500.0,0.00024657,120]
[420765789,1776526443975,500.0,0.00024657,120]
[420765951,1776526460127,500.0,0.00024657,120]
[420765969,1776526461774,500.0,0.00024657,120]
[420765977,1776526462410,647.23,0.00024657,120]
[420766045,1776526468963,543.62,0.00024657,120]
[420766063,1776526470459,500.0,0.00024657,120]
[420766074,1776526471354,500.0,0.00024657,120]
[420766095,1776526473157,500.0,0.00024657,120]
[420766110,1776526474422,500.0,0.00024657,120]
[420766119,1776526475186,151.07641586,0.00024657,120]
[420766138,1776526477056,500.0,0.00024657,120]
[420766146,1776526477790,500.0,0.00024657,120]
[420766184,1776526481206,501.45196325,0.00024657,120]
[420766225,1776526484901,423.14241472,0.00024657,120]
[420766239,1776526486589,500.0,0.00024657,120]
[420766242,1776526486857,500.0,0.00024657,120]
[420766246,1776526487083,194.1,0.00024657,120]
[420766369,1776526498833,500.0,0.00024657,120]
[420766394,1776526501020,500.0,0.00024657,120]
[420766398,1776526501252,500.0,0.00024657,120]
[420766402,1776526501508,500.0,0.00024657,120]
[420766406,1776526501736,500.0,0.00024657,120]
[420766409,1776526501974,500.0,0.00024657,120]
[420766413,1776526502199,500.0,0.00024657,120]
[420766415,1776526502427,500.0,0.00024657,120]
[420766418,1776526502655,500.0,0.00024657,120]
[420766420,1776526502713,500.0,0.00024657,120]
[420766423,1776526502885,500.0,0.00024657,120]
[420766426,1776526503110,500.0,0.00024657,120]
[420766432,1776526503551,500.0,0.00024657,120]
[420766435,1776526503718,500.0,0.00024657,120]
[420766437,1776526503776,500.0,0.00024657,120]
[420766440,1776526504011,500.0,0.00024657,120]
[420766445,1776526504316,500.0,0.00024657,120]
[420766450,1776526504679,500.0,0.00024657,120]
[420766454,1776526504920,500.0,0.00024657,120]
[420766460,1776526505393,338.2,0.00024657,120]
[420766484,1776526507527,500.35466751,0.00024657,120]
[420766490,1776526508076,500.0,0.00024657,120]
[420766578,1776526516502,500.0,0.00024657,120]
[420766582,1776526516739,388.43158124,0.00024657,120]
[420766590,1776526517352,500.63159433,0.00024657,120]
[420766595,1776526517890,500.0,0.00024657,120]
[420766644,1776526522267,500.0,0.00024657,120]
[420766648,1776526522515,644.48,0.00024657,120]
[420766701,1776526527340,500.0,0.00024657,120]
[420766715,1776526528809,500.0,0.00024657,120]
[420766719,1776526529033,238.9198103,0.00024657,120]
[420766797,1776526536444,500.24305708,0.00024657,120]
[420766819,1776526538374,500.0,0.00024657,120]
[420766827,1776526538980,500.56876069,0.00024657,120]
[420766848,1776526540799,500.0,0.00024657,120]
[420766852,1776526541033,282.35,0.00024657,120]
[420766861,1776526541732,588.99947909,0.00024657,120]
[420766912,1776526546529,500.0,0.00024657,120]
[420766917,1776526546859,500.0,0.00024657,120]
[420766920,1776526547088,500.0,0.00024657,120]
[420766924,1776526547328,500.0,0.00024657,120]
[420766927,1776526547552,500.0,0.00024657,120]
[420766930,1776526547788,500.0,0.00024657,120]
[420766934,1776526548021,500.0,0.00024657,120]
[420766938,1776526548264,500.0,0.00024657,120]
[420766941,1776526548499,500.0,0.00024657,120]
[420766948,1776526549060,500.0,0.00024657,120]
[420766952,1776526549312,500.0,0.00024657,120]
[420766956,1776526549593,500.0,0.00024657,120]
[420766960,1776526549827,411.54,0.00024657,120]
[420766963,1776526549997,294.02139998,0.00024657,120]
[420766984,1776526551813,500.0,0.00024657,120]
[420766988,1776526552070,330.99,0.00024657,120]
[420767022,1776526555261,500.0,0.00024657,120]
[420767100,1776526562918,500.0,0.00024657,120]
[420767105,1776526563297,201.19,0.00024657,120]
[420767146,1776526567129,602.67,0.00024657,120]
[420767164,1776526569093,500.0,0.00024657,120]
[420767167,1776526569360,385.51567942,0.00024657,120]
[420767252,1776526577528,500.0,0.00024657,120]
[420767256,1776526577777,500.0,0.00024657,120]
[420767259,1776526578026,500.0,0.00024657,120]
[420767265,1776526578474,500.0,0.00024657,120]
[420767269,1776526578750,500.0,0.00024657,120]
[420767271,1776526578893,508.54,0.00024657,120]
[420767273,1776526579011,500.0,0.00024657,120]
[420767274,1776526579258,500.0,0.00024657,120]
[420767277,1776526579490,500.0,0.00024657,120]
[420767280,1776526579820,500.0,0.00024657,120]
[420767282,1776526579955,500.0,0.00024657,120]
[420767286,1776526580191,500.0,0.00024657,120]
[420767289,1776526580416,500.0,0.00024657,120]
[420767292,1776526580642,500.0,0.00024657,120]
[420767296,1776526580872,500.0,0.00024657,120]
[420767301,1776526581268,500.0,0.00024657,120]
[420767304,1776526581505,500.0,0.00024657,120]
[420767308,1776526581753,500.0,0.00024657,120]
[420767311,1776526581983,500.0,0.00024657,120]
[420767314,1776526582211,500.0,0.00024657,120]
[420767318,1776526582525,500.0,0.00024657,120]
[420767320,1776526582635,500.0,0.00024657,120]
[420767322,1776526582777,500.0,0.00024657,120]
[420767324,1776526582884,500.0,0.00024657,120]
[420767327,1776526583006,607.2,0.00024657,120]
[420767329,1776526583108,645.53,0.00024657,120]
[420767335,1776526583644,500.0,0.00024657,120]
[420767338,1776526583876,565.39,0.00024657,120]
[420767348,1776526584726,500.0,0.00024657,120]